bitfinex-derivatives/quotes_BTCF0:USTF0_20210708
["timestamp","ask_amount","ask_price","bid_price","bid_amount"]
[1625706769310,0.001,33389.0,33383.0,2.7019046]
[1625706769535,0.001,33389.0,33383.0,2.69309388]
[1625706769835,0.001,33389.0,33388.0,0.48115088]
[1625706769986,0.001,33389.0,33388.0,0.53815088]
[1625706770285,0.001,33389.0,33388.0,0.54247049]
[1625706770435,0.001,33389.0,33388.0,0.79023545]
[1625706770736,0.001,33389.0,33388.0,0.62505881]
[1625706770884,0.001,33389.0,33388.0,0.54247049]
[1625706771185,0.001,33389.0,33388.0,0.62512901]
[1625706771934,0.001,33389.0,33388.0,1.12100837]
[1625706772237,0.001,33389.0,33388.0,1.03870365]
[1625706772685,0.001,33389.0,33388.0,1.03911866]
[1625706772835,0.001,33389.0,33388.0,1.12190515]
[1625706773511,0.001,33389.0,33388.0,1.36988388]
[1625706774487,0.001,33389.0,33388.0,1.0387851]
[1625706774637,0.001,33389.0,33388.0,1.3696194]
[1625706775312,0.001,33394.0,33388.0,1.3696194]
[1625706775761,0.001,33394.0,33389.0,0.25244208]
[1625706775915,0.001,33394.0,33393.0,0.24057544]
[1625706776361,0.001,33394.0,33393.0,0.24489489]
[1625706779666,0.001,33394.0,33393.0,0.30189489]
[1625706781469,0.001,33394.0,33393.0,0.57667489]
[1625706782071,0.001,33394.0,33393.0,2.72120877]
[1625706782520,0.002,33399.0,33393.0,4.04813444]
[1625706782673,0.002,33399.0,33393.0,5.20148605]
[1625706782970,0.002,33399.0,33398.0,3.2916044]
[1625706783121,0.002,33399.0,33398.0,4.6642014]
[1625706783270,1.7314,33400.0,33398.0,4.67732971]
[1625706783570,1.7314,33400.0,33399.0,0.01312823]
[1625706783721,1.7314,33400.0,33399.0,4.6154251]
[1625706783871,1.7314,33400.0,33399.0,5.39415142]
[1625706784622,1.7314,33400.0,33399.0,6.87249459]
[1625706784923,1.7314,33400.0,33399.0,5.38534338]
[1625706785747,1.7314,33400.0,33399.0,5.39415124]
[1625706785900,1.7314,33400.0,33399.0,4.07040142]
[1625706786048,1.7314,33400.0,33399.0,2.9198272]
[1625706786348,1.7314,33400.0,33399.0,4.07074802]
[1625706787476,1.7314,33400.0,33399.0,2.9198272]
[1625706788150,1.7314,33400.0,33399.0,4.07085558]
[1625706791003,1.7314,33400.0,33399.0,4.01385558]
[1625706791152,2.01881,33400.0,33399.0,4.01385558]
[1625706791454,2.01881,33400.0,33399.0,1.87662073]
[1625706791754,2.01881,33400.0,33399.0,1.21914975]
[1625706791903,2.01881,33400.0,33399.0,1.30239972]
[1625706792203,2.01881,33400.0,33399.0,0.97305503]
[1625706792503,2.01881,33400.0,33399.0,0.80838268]
[1625706792652,1.62741,33400.0,33399.0,0.86538268]
[1625706792804,1.62741,33400.0,33399.0,1.03015447]
[1625706792955,1.62741,33400.0,33399.0,2.01758793]
[1625706793104,1.62741,33400.0,33399.0,7.20905626]
[1625706793255,2.01881,33400.0,33399.0,7.20905626]
[1625706793703,0.67881,33400.0,33399.0,7.20905626]
[1625706793855,0.67881,33400.0,33399.0,6.22145176]
[1625706794306,0.67881,33400.0,33399.0,7.20953023]
[1625706794453,2.01881,33400.0,33399.0,7.20953023]
[1625706794755,2.01881,33400.0,33399.0,6.22145176]
[1625706795354,2.01881,33400.0,33399.0,7.20987335]
[1625706795654,2.01881,33400.0,33399.0,7.15287335]
[1625706795805,2.01881,33400.0,33399.0,6.16445176]
[1625706796255,2.01881,33400.0,33399.0,5.50604876]
[1625706797156,2.01881,33400.0,33399.0,5.83563984]
[1625706797304,2.01881,33400.0,33399.0,5.50664615]
[1625706797755,2.01881,33400.0,33399.0,5.17705507]
[1625706797904,2.01881,33400.0,33399.0,5.50657728]
[1625706798056,2.01881,33400.0,33399.0,5.50673828]
[1625706798356,2.01881,33400.0,33399.0,5.58917059]
[1625706798505,2.01881,33400.0,33399.0,5.83649528]
[1625706799706,2.01881,33400.0,33399.0,5.50678899]
[1625706800156,2.01881,33400.0,33399.0,5.83664091]
[1625706800457,2.01881,33400.0,33399.0,5.50681816]
[1625706801283,2.01881,33400.0,33399.0,5.34190769]
[1625706801582,2.01881,33400.0,33399.0,5.83672603]
[1625706802638,2.01881,33400.0,33399.0,5.50706485]
[1625706803384,2.01881,33400.0,33399.0,5.58971753]
[1625706803836,2.01881,33400.0,33399.0,5.25973409]
[1625706804141,2.01881,33400.0,33399.0,5.58964396]
[1625706804287,2.01881,33400.0,33399.0,5.5071481]
[1625706804816,2.01881,33400.0,33399.0,5.83694079]
[1625706804966,2.01881,33400.0,33399.0,5.50703092]
[1625706805267,2.01881,33400.0,33399.0,6.16672275]
[1625706805415,2.01881,33400.0,33399.0,6.22372275]
[1625706805641,2.01881,33400.0,33399.0,5.8938918]
[1625706805865,2.01881,33400.0,33399.0,5.56403092]
[1625706806167,2.01881,33400.0,33399.0,6.22350789]
[1625706807144,2.01881,33400.0,33399.0,6.16650789]
[1625706807821,2.01881,33400.0,33399.0,6.22350789]
[1625706808876,2.01881,33400.0,33399.0,7.21301291]
[1625706809404,2.01881,33400.0,33399.0,7.22182052]
[1625706811429,2.01881,33400.0,33399.0,6.2323155]
[1625706811879,2.01881,33400.0,33399.0,1.9461155]
[1625706812030,2.01881,33400.0,33399.0,1.40796462]
[1625706812330,2.01881,33400.0,33399.0,0.82417823]
[1625706812631,2.01881,33400.0,33399.0,0.24489563]
[1625706813983,2.25938544,33400.0,33399.0,0.24489563]
[1625706817362,2.25938544,33400.0,33399.0,0.32767609]
[1625706817663,2.25938544,33400.0,33399.0,0.49323098]
[1625706817813,2.25938544,33400.0,33399.0,0.32767609]
[1625706818114,2.25938544,33400.0,33399.0,0.49320915]
[1625706818489,2.25938544,33400.0,33399.0,0.24489563]
[1625706818788,2.25938544,33400.0,33399.0,0.32769039]
[1625706819239,2.25938544,33400.0,33399.0,0.82456376]
[1625706819389,2.25938544,33400.0,33399.0,0.32769039]
[1625706819691,2.3471171,33400.0,33399.0,0.24489563]
[1625706819990,2.52240819,33400.0,33399.0,0.24489563]
[1625706820141,2.87281878,33400.0,33399.0,0.24489563]
[1625706820440,2.52240819,33400.0,33399.0,0.24489563]
[1625706821040,2.3471171,33400.0,33399.0,0.24489563]
[1625706821341,2.52243193,33400.0,33399.0,0.24489563]
[1625706821719,2.87289144,33400.0,33399.0,0.24489563]
[1625706822018,2.78515978,33400.0,33399.0,0.24489563]
[1625706822243,2.87291037,33400.0,33399.0,0.24489563]
[1625706822472,2.78515978,33400.0,33399.0,0.24489563]
[1625706822772,3.13552239,33400.0,33399.0,0.24489563]
[1625706823372,3.13552239,33400.0,33399.0,0.24057544]
[1625706823525,2.8729576,33400.0,33399.0,0.24057544]
[1625706823673,2.8729576,33400.0,33399.0,0.24488738]
[1625706823824,2.61359809,33400.0,33399.0,0.24488738]
[1625706824202,2.87636876,33400.0,33399.0,0.24488738]
[1625706824498,2.96413801,33400.0,33399.0,0.24488738]
[1625706824798,2.96413801,33400.0,33399.0,0.8251692]
[1625706824799,2.35048544,33400.0,33399.0,0.8251692]
[1625706824949,2.25938544,33400.0,33399.0,0.8251692]
[1625706825400,2.34716072,33400.0,33399.0,0.49357959]
[1625706825626,2.78534681,33400.0,33399.0,0.24488738]
[1625706826078,2.87312284,33400.0,33399.0,0.32775802]
[1625706826376,2.78534681,33400.0,33399.0,0.24488738]
[1625706826526,3.13585828,33400.0,33399.0,0.24488738]
[1625706826828,2.78537977,33400.0,33399.0,0.32776202]
[1625706826978,2.8731728,33400.0,33399.0,0.49349344]
[1625706827509,3.13590769,33400.0,33399.0,0.32776202]
[1625706827732,3.13590769,33400.0,33399.0,0.24488738]
[1625706828481,2.78540872,33400.0,33399.0,0.4934683]
[1625706828785,2.87321727,33400.0,33399.0,0.82485567]
[1625706829232,3.13599657,33400.0,33399.0,0.4934683]
[1625706829381,2.78542729,33400.0,33399.0,0.4934683]
[1625706829831,2.78542729,33400.0,33399.0,0.82500805]
[1625706830131,2.78542729,33400.0,33399.0,0.4934683]
[1625706830431,2.78542729,33400.0,33399.0,0.82505567]
[1625706830807,3.13603092,33400.0,33399.0,0.4934683]
[1625706831333,3.13603092,33400.0,33399.0,0.82509388]
[1625706831784,2.78544841,33400.0,33399.0,0.4934683]
[1625706832383,3.13629904,33400.0,33399.0,0.82522003]
[1625706832910,3.48698781,33400.0,33399.0,0.4934683]
[1625706833134,2.78544841,33400.0,33399.0,0.4934683]
[1625706833360,3.48712334,33400.0,33399.0,0.82084155]
[1625706833813,2.78544841,33400.0,33399.0,0.73798124]
[1625706833961,2.78544841,33400.0,33399.0,0.74229332]
[1625706834112,2.87370926,33400.0,33399.0,0.7421431]
[1625706834337,2.7858485,33400.0,33399.0,1.40522444]
[1625706835464,2.8737251,33400.0,33399.0,1.40522444]
[1625706835690,2.52280818,33400.0,33399.0,1.40522444]
[1625706835989,2.87378849,33400.0,33399.0,1.40522444]
[1625706836966,2.52280818,33400.0,33399.0,2.40008921]
[1625706837416,2.87392701,33400.0,33399.0,2.40008921]
[1625706837565,2.52280818,33400.0,33399.0,2.40008921]
[1625706837793,2.25938544,33400.0,33399.0,2.40008921]
[1625706837939,1.86798544,33400.0,33399.0,2.40008921]
[1625706838090,1.95589513,33400.0,33399.0,2.40008921]
[1625706838241,1.95589513,33400.0,33399.0,3.61809012]
[1625706838542,1.86798544,33400.0,33399.0,3.22669012]
[1625706838693,1.58057544,33400.0,33399.0,3.22669012]
[1625706838842,0.24057544,33400.0,33399.0,3.22669012]
[1625706839225,0.24057544,33400.0,33399.0,4.55347957]
[1625706839670,0.24057544,33400.0,33399.0,3.31920043]
[1625706839819,0.24057544,33400.0,33399.0,3.32800883]
[1625706840422,0.24057544,33400.0,33399.0,3.56858427]
[1625706840573,0.24057544,33400.0,33399.0,3.55977587]
[1625706840872,0.24057544,33400.0,33399.0,2.23298642]
[1625706841171,0.32853096,33400.0,33399.0,2.23298642]
[1625706841323,0.24057544,33400.0,33399.0,2.23298642]
[1625706841472,0.24057544,33400.0,33399.0,2.24179523]
[1625706841625,0.24057544,33400.0,33399.0,3.56791638]
[1625706842375,0.08796276,33403.0,33399.0,3.80849182]
[1625706842524,0.24057544,33404.0,33402.0,2.4849726]
[1625706842677,0.24057544,33404.0,33403.0,0.057]
[1625706842825,0.24057544,33404.0,33403.0,2.54081681]
[1625706842973,0.24057544,33404.0,33403.0,2.55389625]
[1625706843501,0.24057544,33404.0,33403.0,2.54508862]
[1625706843652,0.24057544,33404.0,33403.0,1.22038632]
[1625706843801,0.24057544,33404.0,33403.0,1.22919406]
[1625706843956,0.24057544,33404.0,33403.0,2.55442106]
[1625706844111,0.85563792,33404.0,33403.0,1.22038632]
[1625706844407,0.85563792,33404.0,33403.0,1.46096176]
[1625706844408,0.76767152,33404.0,33403.0,1.46096176]
[1625706844705,0.76767152,33404.0,33403.0,2.7952074]
[1625706844706,0.24057544,33404.0,33403.0,2.7952074]
[1625706845678,0.24057544,33404.0,33403.0,2.78639936]
[1625706845829,0.24057544,33404.0,33403.0,1.46096176]
[1625706845830,0.32856302,33404.0,33403.0,1.46096176]
[1625706846281,0.24057544,33404.0,33403.0,2.78644215]
[1625706847481,0.32857001,33404.0,33403.0,2.78644215]
[1625706847780,0.50438534,33404.0,33403.0,1.46096176]
[1625706847930,0.59204076,33404.0,33403.0,1.46096176]
[1625706848381,0.24057544,33404.0,33403.0,2.78659576]
[1625706849510,0.32857662,33404.0,33403.0,2.78659576]
[1625706849807,0.24057544,33404.0,33403.0,2.78659576]
[1625706849956,0.32857658,33404.0,33403.0,2.78659576]
[1625706850183,0.24057544,33404.0,33403.0,2.78659576]
[1625706851908,0.85582235,33404.0,33403.0,1.46096176]
[1625706852359,0.50437814,33404.0,33403.0,1.46096176]
[1625706853562,0.32856822,33404.0,33403.0,2.7868757]
[1625706853711,0.24057544,33404.0,33403.0,2.7868757]
[1625706856492,0.32855383,33404.0,33403.0,1.46096176]
[1625706856792,0.50433632,33404.0,33403.0,1.46096176]
[1625706856942,0.24057544,33404.0,33403.0,2.78562464]
[1625706858746,0.24057544,33404.0,33403.0,1.46096176]
[1625706859045,0.24057544,33404.0,33403.0,2.78489748]
[1625706861225,0.24057544,33404.0,33403.0,1.46096176]
[1625706861675,0.24057544,33404.0,33403.0,2.78510003]
[1625706862051,0.24057544,33404.0,33403.0,1.46096176]
[1625706862276,0.24057544,33404.0,33403.0,2.78494659]
[1625706862428,0.24057544,33404.0,33403.0,3.13157659]
[1625706862577,0.24057544,33404.0,33403.0,1.80759176]
[1625706862727,0.24057544,33404.0,33403.0,0.64847725]
[1625706862953,0.24057544,33404.0,33403.0,3.13094404]
[1625706867988,0.24057544,33404.0,33403.0,1.80696175]
[1625706868139,0.24057544,33404.0,33403.0,0.64847725]
[1625706868289,0.24057544,33404.0,33403.0,0.30184725]
[1625706868440,0.24057544,33404.0,33403.0,1.46026335]
[1625706868590,0.24057544,33404.0,33403.0,2.78374453]
[1625706869341,0.24057544,33404.0,33403.0,2.78524453]
[1625706869792,0.24057544,33404.0,33403.0,3.77769597]
[1625706869950,0.24057544,33404.0,33403.0,3.78650347]
[1625706870092,0.24057544,33404.0,33403.0,4.01979347]
[1625706871294,0.24057544,33404.0,33403.0,4.01098597]
[1625706871895,0.24057544,33404.0,33403.0,4.01979347]
[1625706872195,0.24057544,33404.0,33403.0,4.01098597]
[1625706872345,0.24057544,33404.0,33403.0,4.01979331]
[1625706872647,0.24057544,33407.0,33403.0,4.01979331]
[1625706872945,0.24057544,33407.0,33406.0,3.46925656]
[1625706873095,0.24057544,33407.0,33406.0,3.52625656]
[1625706873246,0.24057544,33407.0,33406.0,2.20463501]
[1625706873395,0.24057544,33407.0,33406.0,2.20883366]
[1625706874523,0.24057544,33407.0,33406.0,2.4494091]
[1625706875431,0.24057544,33407.0,33406.0,2.6823691]
[1625706876929,0.3284834,33407.0,33406.0,1.52595025]
[1625706877379,0.50412918,33407.0,33406.0,1.52595025]
[1625706877831,0.24057544,33407.0,33406.0,2.68278528]
[1625706879633,0.32848549,33407.0,33406.0,1.52595025]
[1625706879781,0.32848549,33407.0,33406.0,1.29299025]
[1625706880457,0.24057544,33407.0,33406.0,2.44810237]
[1625706882874,0.45680544,33407.0,33406.0,2.44810237]
[1625706883310,1.07157833,33407.0,33406.0,1.29299025]
[1625706884363,0.72040489,33407.0,33406.0,1.29299025]
[1625706884662,0.96098033,33407.0,33406.0,1.29299025]
[1625706885113,1.31219751,33407.0,33406.0,1.29299025]
[1625706885338,0.96098033,33407.0,33406.0,1.29299025]
[1625706885639,1.31220119,33407.0,33406.0,1.29299025]
[1625706886242,0.96098033,33407.0,33406.0,1.29299025]
[1625706886543,1.2243278,33407.0,33406.0,1.29299025]
[1625706886843,1.3140278,33407.0,33406.0,1.29299025]
[1625706887295,1.2243278,33407.0,33406.0,1.29299025]
[1625706887893,1.04865333,33407.0,33406.0,1.29299025]
[1625706888193,1.04865333,33407.0,33406.0,1.23599025]
[1625706888793,0.69738088,33407.0,33406.0,1.23599025]
[1625706890671,0.78608088,33407.0,33406.0,1.23599025]
[1625706890821,0.69738088,33407.0,33406.0,0.99541481]
[1625706891130,2.98094084,33407.0,33406.0,0.49881987]
[1625706891280,4.38647377,33407.0,33406.0,0.08668323]
[1625706891572,2.98094084,33407.0,33406.0,0.57427879]
[1625706891722,4.38646868,33407.0,33406.0,0.07948323]
[1625706892023,2.98094084,33407.0,33406.0,0.24445061]
[1625706892247,4.38649063,33407.0,33406.0,0.07948323]
[1625706892622,4.62706607,33407.0,33406.0,0.24446288]
[1625706892771,3.22151628,33407.0,33406.0,0.57435189]
[1625706893072,3.22151628,33407.0,33406.0,0.32988901]
[1625706893222,3.22151628,33407.0,33405.0,0.001]
[1625706893523,1.05468293,33406.0,33405.0,0.99003016]
[1625706893673,2.28513492,33406.0,33405.0,0.001]
[1625706893822,2.28513492,33406.0,33405.0,0.00520251]
[1625706894122,1.05468293,33406.0,33405.0,0.99434162]
[1625706894648,2.28510821,33406.0,33405.0,0.00520251]
[1625706895172,2.28510821,33406.0,33405.0,0.99391589]
[1625706895173,1.05468293,33406.0,33405.0,0.99391589]
[1625706895323,2.28538277,33406.0,33405.0,0.00520251]
[1625706895999,3.69194405,33406.0,33405.0,0.33510616]
[1625706896225,3.69194405,33406.0,33405.0,0.50006813]
[1625706896450,3.69194405,33406.0,33405.0,0.00520251]
[1625706896750,3.69194405,33406.0,33405.0,0.33521198]
[1625706897050,4.69194405,33406.0,33405.0,0.33521198]
[1625706897349,3.69194405,33406.0,33405.0,0.33521198]
[1625706897574,4.69194405,33406.0,33405.0,0.33521198]
[1625706897725,3.69194405,33406.0,33405.0,0.00520251]
[1625706898325,3.69194405,33406.0,33405.0,0.00420251]
[1625706899752,4.39568073,33406.0,33405.0,0.66196806]
[1625706900503,2.98911945,33406.0,33405.0,0.66196806]
[1625706900652,3.26290945,33406.0,33405.0,0.66196806]
[1625706900803,3.26290945,33406.0,33405.0,1.64764807]
[1625706900954,3.26290945,33406.0,33405.0,0.66196806]
[1625706901103,4.26290945,33406.0,33405.0,0.66196806]
[1625706901780,5.67031359,33406.0,33405.0,0.00420251]
[1625706902081,4.67031359,33406.0,33405.0,0.00420251]
[1625706902230,4.67031359,33406.0,33405.0,0.16810118]
[1625706902231,5.67031359,33406.0,33405.0,0.16810118]
[1625706902530,4.67031359,33406.0,33405.0,0.00420251]
[1625706902830,4.67031359,33406.0,33405.0,0.16794232]
[1625706902979,4.67031359,33406.0,33404.0,0.32879735]
[1625706902980,4.67031359,33406.0,33404.0,0.49111939]
[1625706903129,1.0,33405.0,33404.0,0.49111939]
[1625706903356,5.39764665,33405.0,33404.0,0.49111939]
[1625706903505,5.39764665,33405.0,33404.0,0.49531758]
[1625706903655,4.39764665,33405.0,33404.0,0.49531758]
[1625706903956,5.39764665,33405.0,33404.0,0.49531758]
[1625706904109,5.39764665,33405.0,33404.0,0.16791772]
[1625706904258,4.39764665,33405.0,33404.0,0.16791772]
[1625706904407,4.39764665,33405.0,33404.0,0.16891772]
[1625706904707,4.63822209,33405.0,33404.0,0.16891772]
[1625706905006,5.63822209,33405.0,33404.0,0.16891772]
[1625706906359,5.63822209,33405.0,33404.0,0.00519819]
[1625706907410,5.63822209,33405.0,33404.0,0.00419819]
[1625706907709,4.63822209,33405.0,33404.0,0.00419819]
[1625706907859,5.63822209,33405.0,33404.0,0.00419819]
[1625706908685,4.63822209,33405.0,33404.0,0.00419819]
[1625706908836,5.63822209,33405.0,33404.0,0.00419819]
[1625706908985,4.63822209,33405.0,33404.0,0.00419819]
[1625706909135,4.63822209,33405.0,33404.0,0.16765896]
[1625706909287,4.93732209,33405.0,33404.0,0.16765896]
[1625706909435,4.93732209,33405.0,33404.0,0.00419819]
[1625706909887,5.93732209,33405.0,33404.0,0.00419819]
[1625706911779,7.51943888,33405.0,33404.0,0.00419819]
[1625706913568,7.51943888,33405.0,33403.0,0.001]
[1625706913871,4.39250143,33404.0,33403.0,0.001]
[1625706914020,5.39250143,33404.0,33403.0,0.001]
[1625706914320,5.39250143,33404.0,33403.0,0.00520971]
[1625706914848,6.97367917,33404.0,33403.0,0.00520971]
[1625706914996,7.47367917,33404.0,33403.0,0.00520971]
[1625706915303,7.47367917,33404.0,33397.0,8.544e-05]
[1625706915449,0.0909,33403.0,33395.0,0.65975098]
[1625706915598,0.0909,33403.0,33397.0,0.00420534]
[1625706915752,1.40553862,33398.0,33397.0,0.00420534]
[1625706915901,3.24418862,33398.0,33396.0,0.00420546]
[1625706916076,5.5283139,33398.0,33396.0,0.00420546]
[1625706916201,5.26858724,33397.0,33394.0,0.00420586]
[1625706916350,5.2512,33395.0,33392.0,0.003]
[1625706916507,8.9391608,33395.0,33387.0,0.99507293]
[1625706916649,8.9391608,33395.0,33387.0,0.004]
[1625706916799,0.96230176,33388.0,33387.0,0.004]
[1625706916951,2.29254176,33388.0,33387.0,0.004]
[1625706917250,2.29254176,33388.0,33387.0,0.00820109]
[1625706917402,3.34628151,33388.0,33387.0,0.00820109]
[1625706917850,2.29254176,33388.0,33387.0,0.00820109]
[1625706918603,3.34531362,33388.0,33387.0,0.00820109]
[1625706919129,1.29254176,33388.0,33387.0,0.00820109]
[1625706919729,2.29254176,33388.0,33387.0,0.00820109]
[1625706919955,2.38294176,33388.0,33387.0,0.00820109]
[1625706920254,1.38294176,33388.0,33387.0,0.00820109]
[1625706920403,2.38294176,33388.0,33387.0,0.00820109]
[1625706920553,2.29254176,33388.0,33387.0,0.00820109]
[1625706921606,2.29254176,33388.0,33387.0,0.004]
[1625706922961,5.1955,33383.0,33381.0,0.80703055]
[1625706923259,5.1955,33383.0,33382.0,0.00420167]
[1625706924238,6.1955,33383.0,33382.0,0.00420167]
[1625706924389,6.1955,33383.0,33379.0,0.00420169]
[1625706924536,6.1955,33383.0,33382.0,0.00420169]
[1625706924837,6.67665088,33383.0,33379.0,1.1620134]
[1625706924988,6.67665088,33383.0,33379.0,0.00420169]
[1625706925139,6.67665088,33383.0,33382.0,0.00420161]
[1625706925437,6.67665088,33383.0,33380.0,0.00420161]
[1625706925587,6.67665088,33383.0,33382.0,0.00420161]
[1625706925887,6.67665088,33383.0,33379.0,0.00420161]
[1625706926192,6.67665088,33383.0,33382.0,0.00420167]
[1625706926339,5.67665088,33383.0,33382.0,0.00420167]
[1625706926489,5.67665088,33383.0,33380.0,0.00420172]
[1625706926640,5.67665088,33383.0,33382.0,0.00420172]
[1625706926942,5.67665088,33383.0,33378.0,0.00420172]
[1625706927241,5.67665088,33383.0,33382.0,0.00420172]
[1625706927541,5.67665088,33383.0,33379.0,0.00420172]
[1625706927695,5.67665088,33383.0,33382.0,0.00420257]
[1625706927991,5.67665088,33383.0,33378.0,0.00420247]
[1625706928292,6.67665088,33383.0,33378.0,0.00420247]
[1625706928893,0.24057544,33379.0,33378.0,0.00420247]
[1625706929045,0.58848544,33379.0,33378.0,0.00420247]
[1625706929498,1.58848544,33379.0,33378.0,0.00420247]
[1625706931521,1.58848544,33379.0,33377.0,0.00420167]
[1625706931671,1.58848544,33379.0,33376.0,0.001]
[1625706931970,1.58848544,33379.0,33377.0,0.00420159]
[1625706932270,0.58848544,33379.0,33377.0,0.00420159]
[1625706932420,1.0,33378.0,33377.0,0.00420159]
[1625706932720,0.58848544,33379.0,33377.0,0.00420159]
[1625706933695,1.58848544,33379.0,33377.0,0.00420159]
[1625706934445,1.0,33378.0,33376.0,0.001]
[1625706934897,0.24057544,33377.0,33376.0,0.001]
[1625706935197,1.24057544,33377.0,33376.0,0.001]
[1625706937297,1.24057544,33377.0,33374.0,0.001]
[1625706937748,1.0,33375.0,33374.0,0.001]
[1625706938797,1.0911,33375.0,33374.0,0.001]
[1625706938951,1.33167544,33375.0,33374.0,0.001]
[1625706943002,0.33167544,33375.0,33374.0,0.001]
[1625706943153,1.33167544,33375.0,33374.0,0.001]
[1625706943301,0.33167544,33375.0,33374.0,0.001]
[1625706943451,1.33167544,33375.0,33374.0,0.001]
[1625706943756,0.33167544,33375.0,33374.0,0.00520287]
[1625706943902,1.33167544,33375.0,33374.0,0.00520287]
[1625706944055,1.33167544,33375.0,33374.0,0.001]
[1625706944654,1.24057544,33375.0,33374.0,0.001]
[1625706944803,1.24057544,33375.0,33374.0,0.0052029]
[1625706944955,0.24057544,33375.0,33374.0,0.3326729]
[1625706945105,0.24057544,33375.0,33374.0,0.38547]
[1625706945404,0.24057544,33375.0,33374.0,0.38967258]
[1625706946378,0.24057544,33375.0,33374.0,0.38867258]
[1625706946903,0.24057544,33375.0,33374.0,0.06120258]
[1625706948858,0.50764544,33375.0,33374.0,0.06120258]
[1625706949009,1.50764544,33375.0,33374.0,0.06120258]
[1625706950284,1.50764544,33375.0,33374.0,0.00420258]
[1625706950815,1.50764544,33375.0,33372.0,0.00420086]
[1625706951934,0.50764544,33375.0,33372.0,0.00420086]
[1625706952084,1.50764544,33375.0,33372.0,0.00420086]
[1625706952235,0.50764544,33375.0,33372.0,0.00420086]
[1625706952536,1.0,33374.0,33372.0,0.00420086]
[1625706953065,0.24057544,33373.0,33372.0,0.00420086]
[1625706955688,0.53552544,33373.0,33372.0,0.00420086]
[1625706955991,1.53552544,33373.0,33372.0,0.00420086]
[1625706956139,0.53552544,33373.0,33372.0,0.00420086]
[1625706957188,0.24057544,33373.0,33372.0,0.00420086]
[1625706957490,0.24057544,33373.0,33372.0,0.50237535]
[1625706957639,0.24057544,33373.0,33372.0,0.55937535]
[1625706958917,0.24057544,33373.0,33372.0,0.06120086]
[1625706959068,0.58222544,33373.0,33372.0,0.06120086]
[1625706960568,0.58222544,33373.0,33372.0,0.56062398]
[1625706960721,0.24057544,33373.0,33372.0,0.56062398]
[1625706962896,0.24057544,33373.0,33372.0,1.55926308]
[1625706963199,0.24057544,33373.0,33372.0,0.56062398]
[1625706965901,0.24057544,33373.0,33372.0,1.56065107]
[1625706966654,0.24057544,33373.0,33372.0,0.56062398]
[1625706967854,0.24057544,33373.0,33372.0,1.56164305]
[1625706970557,0.24057544,33373.0,33372.0,2.73056669]
[1625706971083,0.24057544,33373.0,33372.0,1.56164305]
[1625706971232,0.24057544,33373.0,33372.0,2.73093316]
[1625706972736,0.24057544,33373.0,33372.0,1.56164305]
[1625706972884,0.24057544,33373.0,33372.0,2.73260062]
[1625706975284,0.24057544,33373.0,33372.0,3.40295735]
[1625706979939,0.24057544,33373.0,33372.0,3.34595735]
[1625706980389,1.47097603,33373.0,33372.0,3.34595735]
[1625706981064,1.47097603,33373.0,33372.0,2.17499978]
[1625706981739,2.47097603,33373.0,33372.0,2.17499978]
[1625706982041,3.61659007,33373.0,33372.0,2.17499978]
[1625706983690,2.52569007,33373.0,33372.0,2.17499978]
[1625706983840,3.52569007,33373.0,33372.0,2.17499978]
[1625706984052,3.52569007,33373.0,33372.0,0.41122398]
[1625706984053,6.16296907,33373.0,33372.0,0.41122398]
[1625706984168,6.16296907,33373.0,33372.0,0.22522398]
[1625706984292,6.16296907,33373.0,33371.0,0.58360271]
[1625706984442,6.1782825,33373.0,33367.0,0.60139389]
[1625706984619,5.27419725,33372.0,33365.0,1.0127234]
[1625706984751,5.58913725,33372.0,33365.0,1.0127234]
[1625706984892,1.05489123,33366.0,33365.0,1.0127234]
[1625706985042,2.28584446,33366.0,33365.0,0.9987234]
[1625706985206,3.00757078,33366.0,33365.0,1.00292408]
[1625706985348,4.00757078,33366.0,33365.0,1.00292408]
[1625706985867,4.00757078,33366.0,33365.0,0.00420068]
[1625706986018,6.58111755,33366.0,33365.0,0.00420068]
[1625706987073,9.21888339,33366.0,33365.0,0.00420068]
[1625706987518,9.71888339,33366.0,33360.0,0.9827509]
[1625706987819,1.40688708,33364.0,33361.0,0.00420742]
[1625706988043,1.40736075,33362.0,33360.0,0.00420733]
[1625706988871,1.0,33361.0,33360.0,0.00420733]
[1625706989170,1.48115088,33361.0,33360.0,0.00420733]
[1625706989321,2.88705777,33361.0,33360.0,0.00420733]
[1625706989471,2.88705777,33361.0,33356.0,0.003]
[1625706989624,1.48115088,33361.0,33356.0,0.003]
[1625706989921,1.48115088,33361.0,33357.0,0.00421235]
[1625706990973,1.0,33358.0,33357.0,0.00421235]
[1625706991129,1.48115088,33358.0,33357.0,0.00421235]
[1625706992103,1.48115088,33358.0,33356.0,0.003]
[1625706992552,1.0,33357.0,33356.0,0.003]
[1625706992701,1.33843,33357.0,33356.0,0.003]
[1625706993151,0.33843,33357.0,33356.0,0.003]
[1625706993304,1.33843,33357.0,33356.0,0.003]
[1625706995328,0.33843,33357.0,33356.0,0.003]
[1625706996756,1.33843,33357.0,33356.0,0.003]
[1625706998333,1.33843,33357.0,33353.0,0.001]
[1625706998557,0.33843,33357.0,33353.0,0.001]
[1625706998708,1.0,33357.0,33353.0,0.001]
[1625706998859,1.0,33354.0,33353.0,0.001]
[1625706999159,1.48115088,33354.0,33353.0,0.001]
[1625706999384,0.48115088,33354.0,33353.0,0.001]
[1625707006293,1.48115088,33354.0,33353.0,0.001]
[1625707007119,0.48115088,33354.0,33353.0,0.001]
[1625707007269,0.48115088,33354.0,33350.0,0.058]
[1625707007871,0.48115088,33354.0,33350.0,0.001]
[1625707009375,0.24057544,33351.0,33350.0,0.001]
[1625707009673,0.24057544,33351.0,33350.0,0.00520518]
[1625707009974,0.24057544,33351.0,33350.0,0.001]
[1625707010273,0.24057544,33351.0,33350.0,0.0052051]
[1625707010423,0.24057544,33351.0,33350.0,0.001]
[1625707010729,0.24057544,33351.0,33350.0,0.00520471]
[1625707013655,1.24057544,33351.0,33350.0,0.00520471]
[1625707014628,0.33157544,33351.0,33350.0,0.00520471]
[1625707014779,1.33157544,33351.0,33350.0,0.00520471]
[1625707015754,0.33157544,33351.0,33350.0,0.00520471]
[1625707016054,1.33157544,33351.0,33350.0,0.00520471]
[1625707016204,0.33157544,33351.0,33350.0,0.00520471]
[1625707016355,0.33157544,33351.0,33350.0,0.00420471]
[1625707016804,0.33157544,33351.0,33348.0,0.00420538]
[1625707017105,1.33157544,33351.0,33348.0,0.00420538]
[1625707017256,0.24057544,33349.0,33348.0,0.00420538]
[1625707024392,0.24057544,33349.0,33347.0,0.001]
[1625707024542,0.24057544,33349.0,33348.0,0.00420514]
[1625707025819,0.24057544,33349.0,33347.0,0.00420511]
[1625707027547,0.24057544,33348.0,33347.0,0.00420511]